bitfinex-derivatives/quotes_BTCF0:USTF0_20251118
["timestamp","ask_amount","ask_price","bid_price","bid_amount"]
[1763467823616,0.06164189,91370.0,91366.0,0.03461422]
[1763467823819,0.06060803,91370.0,91366.0,0.03461422]
[1763467824028,0.06160803,91370.0,91366.0,0.03461422]
[1763467824720,0.06160803,91370.0,91366.0,0.05733422]
[1763467825216,0.0029307,91370.0,91366.0,0.05733422]
[1763467826626,0.0029307,91370.0,91369.0,0.04405]
[1763467827524,0.0029307,91370.0,91369.0,0.04443]
[1763467827921,0.02641928,91370.0,91369.0,0.04443]
[1763467828128,0.02834998,91370.0,91369.0,0.04443]
[1763467833226,0.06748545,91370.0,91369.0,0.04443]
[1763467833918,0.08705178,91370.0,91369.0,0.02133]
[1763467834232,0.02834998,91370.0,91369.0,0.02133]
[1763467835127,0.02834998,91370.0,91369.0,0.04443]
[1763467839429,0.08722193,91370.0,91369.0,0.04443]
[1763467839626,0.02834998,91370.0,91369.0,0.04443]
[1763467841638,0.03926741,91375.0,91374.0,0.0458]
[1763467842138,0.03926741,91376.0,91374.0,0.0458]
[1763467842532,0.03926741,91376.0,91375.0,0.0458]
[1763467843134,0.03926741,91377.0,91375.0,0.0458]
[1763467843332,0.03926741,91377.0,91376.0,0.0458]
[1763467844036,0.03926741,91378.0,91376.0,0.0458]
[1763467844239,0.03926741,91379.0,91378.0,0.0458]
[1763467844534,0.03943163,91384.0,91383.0,0.0458]
[1763467844931,0.00999999,91390.0,91389.0,0.0458]
[1763467845233,0.00999999,91390.0,91384.0,0.01273]
[1763467845234,0.05887195,91400.0,91399.0,0.0458]
[1763467845436,0.08030546,91406.0,91405.0,0.0458]
[1763467845633,0.02143351,91406.0,91405.0,0.0458]
[1763467845834,0.10348742,91406.0,91405.0,0.0458]
[1763467846038,0.10348777,91406.0,91405.0,0.0458]
[1763467846237,0.04450351,91406.0,91405.0,0.0458]
[1763467846831,0.04423,91401.0,91400.0,0.00219803]
[1763467847033,0.04423,91397.0,91396.0,0.00016412]
[1763467849537,0.00999999,91380.0,91368.0,0.01273]
[1763467849833,0.04423,91371.0,91370.0,0.02489803]
[1763467850237,0.04423,91371.0,91370.0,0.00219803]
[1763467850836,0.04423,91371.0,91370.0,0.02489803]
[1763467852033,0.04523,91371.0,91370.0,0.02489803]
[1763467853534,0.0697142,91371.0,91370.0,0.06072803]
[1763467853737,0.0254842,91371.0,91370.0,0.06072803]
[1763467855339,0.0466442,91371.0,91370.0,0.06072803]
[1763467856339,0.0254842,91371.0,91370.0,0.06072803]
[1763467856536,0.0244842,91371.0,91370.0,0.06072803]
[1763467858042,4.2e-06,91371.0,91370.0,0.06072803]
[1763467858242,0.00016412,91380.0,91379.0,0.04401]
[1763467858440,0.04431,91368.0,91367.0,0.04401]
[1763467858742,0.04431,91377.0,91376.0,0.04401]
[1763467859837,0.05768,91377.0,91376.0,0.04401]
[1763467860334,0.0219,91377.0,91376.0,0.04401]
[1763467861135,0.04431,91377.0,91376.0,0.04401]
[1763467861341,0.04976,91377.0,91376.0,0.04401]
[1763467861537,0.05076,91377.0,91376.0,0.04401]
[1763467862135,0.04976,91377.0,91376.0,0.04401]
[1763467862542,0.04431,91377.0,91376.0,0.04401]
[1763467863933,0.04531,91377.0,91376.0,0.04401]
[1763467864135,0.001,91377.0,91376.0,0.04401]
[1763467864339,0.00016412,91380.0,91376.0,0.04401]
[1763467864534,0.00016412,91380.0,91379.0,0.04401]
[1763467864730,0.04431,91395.0,91394.0,0.04401]
[1763467865239,0.05768,91395.0,91394.0,0.04401]
[1763467865446,0.04431,91391.0,91390.0,0.00219803]
[1763467865743,0.04431,91374.0,91373.0,0.04401]
[1763467866544,0.04431,91371.0,91370.0,0.04620803]
[1763467870141,0.06868351,91371.0,91370.0,0.04620803]
[1763467871248,0.02437351,91371.0,91370.0,0.04620803]
[1763467872146,0.04627351,91371.0,91370.0,0.04620803]
[1763467872448,0.04431,91371.0,91370.0,0.04620803]
[1763467872640,0.06868613,91371.0,91370.0,0.04620803]
[1763467874144,0.06868613,91371.0,91370.0,0.00219803]
[1763467874354,0.06868613,91371.0,91370.0,0.04620803]
[1763467875244,0.04431,91365.0,91364.0,0.00016412]
[1763467875540,0.04431,91365.0,91364.0,0.04417412]
[1763467875541,0.02437613,91365.0,91364.0,0.04417412]
[1763467875741,0.00999999,91370.0,91369.0,0.04401]
[1763467875941,0.00999999,91370.0,91368.0,0.01353]
[1763467875942,0.04431,91372.0,91371.0,0.04401]
[1763467876141,0.06870362,91372.0,91371.0,0.04401]
[1763467877250,0.04431,91371.0,91370.0,0.00219803]
[1763467877446,0.06870362,91371.0,91370.0,0.00219803]
[1763467878445,0.06970362,91371.0,91370.0,0.00219803]
[1763467879654,0.04531,91371.0,91370.0,0.04620803]
[1763467879851,0.06972393,91371.0,91370.0,0.04620803]
[1763467880048,0.06872393,91371.0,91370.0,0.04620803]
[1763467880850,0.02441393,91371.0,91370.0,0.04620803]
[1763467881758,2.2e-07,91371.0,91370.0,0.04620803]
[1763467881950,0.04324412,91380.0,91379.0,0.04504]
[1763467882849,0.04324412,91380.0,91368.0,0.01319]
[1763467883048,0.04308,91369.0,91368.0,0.04504]
[1763467889857,0.0211,91369.0,91368.0,0.04504]
[1763467890064,0.05636,91376.0,91375.0,0.04366]
[1763467890362,0.04358,91376.0,91375.0,0.04366]
[1763467890560,0.0223,91376.0,91375.0,0.04366]
[1763467890862,0.03932508,91377.0,91376.0,0.05719]
[1763467891262,0.06162508,91377.0,91376.0,0.05719]
[1763467891460,0.08290508,91377.0,91376.0,0.04366]
[1763467891656,0.03932508,91379.0,91378.0,0.04366]
[1763467892364,0.0617892,91380.0,91379.0,0.04366]
[1763467893866,0.0830692,91380.0,91379.0,0.04366]
[1763467894157,0.10737713,91380.0,91379.0,0.04366]
[1763467895063,0.06805205,91380.0,91379.0,0.04366]
[1763467895263,0.10737713,91380.0,91379.0,0.04366]
[1763467898053,0.06379713,91380.0,91379.0,0.04366]
[1763467898262,0.06805205,91380.0,91379.0,0.04366]
[1763467909367,0.04358,91365.0,91364.0,0.04382412]
[1763467910770,0.0676936,91365.0,91364.0,0.04382412]
[1763467913879,0.01465598,91365.0,91364.0,0.04382412]
[1763467914076,0.04358,91378.0,91377.0,0.04366]
[1763467915176,0.04458,91378.0,91377.0,0.04366]
[1763467915884,0.04358,91378.0,91377.0,0.04366]
[1763467916680,0.08292441,91378.0,91377.0,0.04366]
[1763467916883,0.04358,91378.0,91377.0,0.04366]
[1763467918186,0.00016412,91380.0,91379.0,0.04371]
[1763467918487,0.03934441,91396.0,91394.0,0.04371]
[1763467918680,0.03934441,91397.0,91395.0,0.04371]
[1763467918883,0.02193,91403.0,91402.0,0.04371]
[1763467919075,0.04476,91403.0,91402.0,0.04371]
[1763467920088,0.04476,91401.0,91400.0,0.00219803]
[1763467920482,0.04476,91401.0,91400.0,0.02436803]
[1763467920994,0.04476,91401.0,91400.0,0.04590803]
[1763467921484,0.02293,91403.0,91402.0,0.04371]
[1763467921687,0.03950853,91412.0,91405.0,0.04371]
[1763467921990,0.00016412,91412.0,91405.0,0.04371]
[1763467923091,0.00016412,91412.0,91411.0,0.04371]
[1763467925280,0.04492412,91412.0,91411.0,0.04371]
[1763467925887,0.06891673,91412.0,91411.0,0.04371]
[1763467927695,0.02415673,91412.0,91411.0,0.04371]
[1763467927892,0.00016412,91412.0,91411.0,0.04371]
[1763467929897,0.00999999,91420.0,91419.0,0.04371]
[1763467930091,0.04476,91430.0,91429.0,0.04371]
[1763467930291,0.18677707,91440.0,91439.0,0.04371]
[1763467930491,0.06871431,91440.0,91439.0,0.04371]
[1763467931591,0.04476,91431.0,91430.0,0.00016412]
[1763467932701,0.04476,91431.0,91430.0,0.00236215]
[1763467933602,0.04576,91431.0,91430.0,0.02453215]
[1763467934597,0.04576,91431.0,91430.0,0.04607215]
[1763467935502,0.04576,91431.0,91430.0,0.02453215]
[1763467935702,0.04576,91431.0,91430.0,0.00236215]
[1763467937201,0.04576,91431.0,91430.0,0.02453215]
[1763467937596,0.04576,91431.0,91430.0,0.00236215]
[1763467939004,0.02293,91431.0,91430.0,0.04607215]
[1763467939401,0.04576,91431.0,91430.0,0.04607215]
[1763467940696,0.001,91431.0,91430.0,0.04607215]
[1763467941006,0.05849,91448.0,91447.0,0.02238]
[1763467941307,0.05849,91448.0,91439.0,0.04434]
[1763467941308,0.04512,91440.0,91439.0,0.04434]
[1763467941607,0.06889683,91440.0,91439.0,0.04434]
[1763467942202,0.04512,91431.0,91430.0,0.04450412]
[1763467942403,0.04512,91431.0,91430.0,0.17330215]
[1763467943003,0.04512,91431.0,91430.0,0.04670215]
[1763467945601,0.04512,91440.0,91439.0,0.04434]
[1763467945801,0.06894247,91440.0,91439.0,0.04434]
[1763467946812,0.06994247,91440.0,91439.0,0.04434]
[1763467949704,0.06894247,91440.0,91439.0,0.04434]
[1763467950111,0.10828688,91440.0,91439.0,0.04434]
[1763467950417,0.0447,91431.0,91430.0,0.04462412]
[1763467950615,0.06852247,91431.0,91430.0,0.04682215]
[1763467953510,0.06852247,91431.0,91430.0,0.00236215]
[1763467953914,0.06852247,91431.0,91430.0,0.02504215]
[1763467954113,0.06852247,91431.0,91430.0,0.00236215]
[1763467955018,0.06852247,91431.0,91430.0,0.02504215]
[1763467955219,0.06852247,91431.0,91430.0,0.04682215]
[1763467956925,0.0447,91398.0,91397.0,0.10359661]
[1763467957113,0.05559,91406.0,91405.0,0.04446]
[1763467957313,0.07975517,91406.0,91405.0,0.04446]
[1763467957724,0.07975517,91406.0,91405.0,0.02268]
[1763467958015,0.0447,91397.0,91396.0,0.00016403]
[1763467958229,0.06886517,91397.0,91396.0,0.00016403]
[1763467959219,0.1080948,91397.0,91396.0,0.00016403]
[1763467959614,0.08392963,91397.0,91396.0,0.00016403]
[1763467959925,0.1080432,91397.0,91396.0,0.00016403]
[1763467960111,0.06881357,91397.0,91396.0,0.00016403]
[1763467961526,0.0447,91367.0,91366.0,0.02295363]
[1763467961718,0.0447,91367.0,91366.0,0.00027363]
[1763467962116,0.0447,91353.0,91352.0,0.05741]
[1763467962426,0.0447,91353.0,91352.0,0.30926]
[1763467962621,0.0437,91353.0,91352.0,0.04446]
[1763467964419,0.0437,91353.0,91352.0,0.04546]
[1763467966327,0.0437,91353.0,91352.0,0.02368]
[1763467966530,0.0437,91353.0,91352.0,0.001]
[1763467968331,0.0437,91353.0,91352.0,0.02368]
[1763467968520,0.0437,91353.0,91352.0,0.001]
[1763467969937,0.0437,91353.0,91314.0,0.01295]
[1763467969938,0.0447,91327.0,91314.0,0.01295]
[1763467970428,0.0447,91327.0,91306.0,0.06996]
[1763467970827,0.04480031,91327.0,91306.0,0.06996]
[1763467971022,0.04480031,91327.0,91317.0,0.00016422]
[1763467971227,0.04480031,91327.0,91326.0,0.00227375]
[1763467972432,0.0447,91318.0,91317.0,0.00016422]
[1763467972627,0.0447,91307.0,91306.0,0.11442]
[1763467972931,0.04480031,91307.0,91306.0,0.11442]
[1763467973324,0.04480031,91307.0,91306.0,0.06996]
[1763467973634,0.04480031,91307.0,91306.0,0.09264]
[1763467973935,0.04480031,91307.0,91306.0,0.06996]
[1763467974528,0.04480031,91307.0,91306.0,0.02268]
[1763467974721,0.0447,91298.0,91297.0,0.04462422]
[1763467974936,0.0447,91298.0,91297.0,0.00016422]
[1763467975328,0.0447,91298.0,91297.0,0.02284422]
[1763467976828,0.0447,91298.0,91297.0,0.00016422]
[1763467977927,0.0457,91279.0,91278.0,0.00012388]
[1763467978128,0.04580031,91279.0,91278.0,0.00012388]
[1763467978735,0.00999999,91270.0,91260.0,0.01295]
[1763467978934,0.0457,91270.0,91269.0,0.02117]
[1763467979131,0.04586431,91274.0,91270.0,0.00219803]
[1763467979327,0.0457,91271.0,91270.0,0.04663803]
[1763467979536,0.0457,91261.0,91260.0,0.04444]
[1763467979734,0.0457,91261.0,91260.0,0.04663803]
[1763467979939,0.0457,91261.0,91260.0,0.06001803]
[1763467980434,0.02318,91261.0,91260.0,0.06001803]
[1763467980833,0.00016431,91274.0,91260.0,0.06001803]
[1763467980834,0.00016431,91274.0,91273.0,0.04444]
[1763467981539,0.04586431,91274.0,91273.0,0.04444]
[1763467981842,0.00010031,91279.0,91278.0,0.04444]
[1763467983646,0.00016431,91288.0,91287.0,0.04444]
[1763467984436,0.00024963,91288.0,91287.0,0.04444]
[1763467986841,0.00024963,91288.0,91287.0,0.05782]
[1763467987742,0.03217999,91300.0,91299.0,0.02117]
[1763467988037,0.0457,91300.0,91299.0,0.04444]
[1763467988238,0.0457,91300.0,91299.0,0.02117]
[1763467988640,0.02318,91300.0,91299.0,0.04444]
[1763467989137,0.0457,91300.0,91299.0,0.04444]
[1763467989837,0.04586431,91309.0,91308.0,0.04444]
[1763467990141,0.0457,91247.0,91246.0,0.00027399]
[1763467990441,0.02318,91220.0,91219.0,0.28633]
[1763467990635,0.00899999,91230.0,91220.0,0.00219803]
[1763467991135,0.0233444,91234.0,91233.0,0.04444]
[1763467991441,0.0458644,91234.0,91233.0,0.04444]
[1763467991838,0.0001644,91234.0,91233.0,0.04444]
[1763467992140,0.00899999,91250.0,91239.0,0.04444]
[1763467992341,0.00899999,91250.0,91240.0,0.00219803]
[1763467993340,0.0457,91241.0,91240.0,0.02336803]
[1763467994440,0.0457,91237.0,91236.0,0.0001644]
[1763467996244,0.01341,91245.0,91215.0,0.00012332]
[1763467996245,0.0457,91216.0,91215.0,0.00012332]
[1763467997037,0.0457,91216.0,91215.0,0.04456332]
[1763467997449,0.0457,91216.0,91215.0,0.00012332]
[1763467999048,0.0457,91216.0,91210.0,0.00219803]
[1763467999049,0.0457,91207.0,91206.0,0.00043851]
[1763468000150,0.04577706,91207.0,91206.0,0.00043851]
[1763468000644,0.04577706,91207.0,91206.0,0.02160851]
[1763468000948,7.706e-05,91207.0,91206.0,0.04487851]
[1763468001142,0.02318,91220.0,91219.0,0.04444]
[1763468001445,0.0447444,91225.0,91224.0,0.04398]
[1763468002040,0.0001644,91225.0,91224.0,0.04398]
[1763468002242,0.02246922,91225.0,91224.0,0.04298]
[1763468002948,0.04482922,91225.0,91224.0,0.04298]
[1763468003950,0.00024922,91225.0,91224.0,0.04298]
[1763468004652,0.27668723,91250.0,91224.0,0.04298]
[1763468004653,0.04458,91250.0,91249.0,0.02145]
[1763468004955,0.04458,91250.0,91249.0,0.04426]
[1763468005147,0.00899999,91240.0,91239.0,0.04426]
[1763468005350,0.01341,91256.0,91240.0,0.00219803]
[1763468005351,0.00899999,91250.0,91240.0,0.00219803]
[1763468005758,0.05357999,91250.0,91240.0,0.00219803]
[1763468005947,0.02222,91241.0,91240.0,0.04645803]
[1763468006144,0.00899999,91250.0,91240.0,0.04645803]
[1763468006345,0.04458,91250.0,91249.0,0.04426]
[1763468006653,0.02222,91250.0,91249.0,0.04426]
[1763468006953,0.04458,91250.0,91249.0,0.04426]
[1763468009659,0.0429544,91254.0,91253.0,0.04526]
[1763468011259,0.0218844,91254.0,91253.0,0.04526]
[1763468011451,0.0429544,91254.0,91253.0,0.04526]
[1763468011654,0.04236026,91254.0,91253.0,0.04526]
[1763468011848,0.00899999,91260.0,91253.0,0.04526]
[1763468012153,0.04279,91260.0,91259.0,0.04526]
[1763468012355,0.01336,91278.0,91260.0,0.01511803]
[1763468012556,0.04279,91261.0,91260.0,0.06054243]
[1763468013056,0.00899999,91270.0,91260.0,0.06054243]
[1763468013260,0.04279,91261.0,91260.0,0.06054243]
[1763468014861,0.04279,91261.0,91260.0,0.04762243]
[1763468015062,0.04279,91270.0,91269.0,0.02294]
[1763468015262,0.06687037,91270.0,91269.0,0.02294]
[1763468015762,0.07587036,91270.0,91260.0,0.0130844]
[1763468015963,0.06687037,91269.0,91268.0,0.02294]
[1763468016159,0.06687037,91269.0,91268.0,0.04526]
[1763468018367,0.02172,91261.0,91260.0,0.0583444]
[1763468018565,0.08195487,91275.0,91274.0,0.04526]
[1763468018752,0.10607015,91275.0,91274.0,0.02294]
[1763468018957,0.04279,91271.0,91270.0,0.00219803]
[1763468019160,0.06690528,91271.0,91270.0,0.00219803]
[1763468020963,0.06690528,91271.0,91270.0,0.02513803]
[1763468021160,0.06690528,91271.0,91270.0,0.04745803]
[1763468021559,0.05863991,91277.0,91272.0,0.04526]
[1763468021759,0.04279,91277.0,91276.0,0.04526]
[1763468021960,0.10603597,91277.0,91276.0,0.04526]
[1763468022159,0.06693609,91277.0,91276.0,0.04526]
[1763468022568,0.02414609,91277.0,91276.0,0.04526]
[1763468022964,0.06693609,91277.0,91276.0,0.04526]
[1763468025271,0.02414609,91277.0,91276.0,0.04526]
[1763468025467,0.06693609,91277.0,91276.0,0.04526]
[1763468025673,0.06693609,91277.0,91276.0,0.02294]
[1763468025972,0.04279,91261.0,91260.0,0.0454244]
[1763468026163,0.04279,91261.0,91260.0,0.20646243]
[1763468026359,0.04279,91261.0,91260.0,0.04762243]
[1763468026566,0.04279,91261.0,91260.0,0.27470243]
[1763468026873,0.04279,91261.0,91260.0,0.28762243]
[1763468027865,0.04279,91270.0,91269.0,0.04526]
[1763468028072,0.06684213,91270.0,91269.0,0.04526]
[1763468028775,0.06684213,91270.0,91269.0,0.05818]
[1763468029469,0.02405213,91270.0,91269.0,0.05818]
[1763468029973,0.04279,91261.0,91260.0,0.0454244]
[1763468030170,0.03817159,91261.0,91260.0,0.16182243]
[1763468030367,0.03817159,91261.0,91260.0,0.06054243]
[1763468030569,0.06224447,91261.0,91260.0,0.00236243]
[1763468030769,0.06224447,91261.0,91260.0,0.0001644]
[1763468030973,0.00899999,91250.0,91233.0,0.01292]
[1763468031171,0.17433554,91250.0,91240.0,0.04745803]
[1763468031479,0.04279,91243.0,91242.0,0.05818]
[1763468034175,0.06690573,91243.0,91242.0,0.05818]
[1763468034376,0.16549995,91252.0,91251.0,0.05818]
[1763468034377,0.0001644,91252.0,91251.0,0.05818]
[1763468035687,0.0218844,91252.0,91251.0,0.05818]
[1763468035882,0.0429544,91252.0,91251.0,0.05818]
[1763468036376,0.04279,91251.0,91250.0,0.04745803]
[1763468040179,0.0001644,91252.0,91251.0,0.05761]
[1763468041888,0.0222244,91252.0,91251.0,0.05761]
[1763468042080,0.0001644,91252.0,91251.0,0.05761]
[1763468042276,0.0222244,91252.0,91251.0,0.05761]
[1763468042583,0.04453,91251.0,91250.0,0.00219803]
[1763468043681,0.04453,91251.0,91250.0,0.04593803]
[1763468044083,0.04453,91251.0,91250.0,0.00219803]
[1763468044594,0.04453,91251.0,91250.0,0.04593803]
[1763468044774,0.04453,91251.0,91250.0,0.04493803]
[1763468045686,0.04453,91251.0,91250.0,0.00119803]
[1763468045888,0.00899999,91250.0,91235.0,0.26592]
[1763468046080,0.00899999,91250.0,91233.0,0.0130844]
[1763468046081,0.04453,91234.0,91233.0,0.0001644]
[1763468046388,0.06862884,91234.0,91233.0,0.0001644]
[1763468046688,0.06862884,91234.0,91217.0,0.1155552]
[1763468046689,0.00999999,91230.0,91217.0,0.1155552]
[1763468046890,0.04453,91221.0,91220.0,0.0456707]
[1763468048583,0.04453,91221.0,91220.0,0.0019307]
[1763468050288,0.04453,91221.0,91220.0,0.0456707]
[1763468050982,0.0446944,91230.0,91229.0,0.04374]
[1763468051183,0.0456944,91230.0,91229.0,0.04374]
[1763468054194,0.0011644,91230.0,91229.0,0.04374]
[1763468054392,0.0456944,91230.0,91229.0,0.04374]
[1763468055383,0.04453,91225.0,91224.0,0.05761]
[1763468055589,0.04453,91221.0,91220.0,0.0237407]
[1763468055791,0.04453,91221.0,91220.0,0.0456707]
[1763468056798,0.04453,91221.0,91220.0,0.0019307]
[1763468057300,0.06857904,91221.0,91220.0,0.0019307]
[1763468057690,0.04453,91218.0,91217.0,0.0001152]
[1763468057888,0.06857904,91218.0,91217.0,0.0001152]
[1763468058096,0.04453,91212.0,91211.0,0.0001644]
[1763468058597,0.04453,91212.0,91186.0,0.1097861]
[1763468058598,0.04453,91185.0,91184.0,0.04374]
[1763468058801,0.21886554,91200.0,91199.0,0.04374]
[1763468058990,0.04672803,91200.0,91199.0,0.04374]
[1763468059295,0.04672803,91200.0,91190.0,0.01387]
[1763468059296,0.04453,91191.0,91190.0,0.05761]
[1763468059486,0.00219803,91190.0,91170.0,0.01387]
[1763468059690,0.04453,91180.0,91179.0,0.05761]
[1763468059898,0.04684323,91180.0,91179.0,0.05761]
[1763468060200,0.00231323,91180.0,91179.0,0.05761]
[1763468061495,0.0001152,91180.0,91179.0,0.05761]
[1763468062299,0.0001152,91180.0,91166.0,0.00027423]
[1763468062300,0.04258,91167.0,91166.0,0.00027423]
[1763468062890,0.04258,91167.0,91166.0,0.02215423]
[1763468063088,0.00219803,91170.0,91169.0,0.04338]
[1763468063400,0.00911519,91180.0,91179.0,0.04338]
[1763468063594,0.00231323,91180.0,91179.0,0.04338]
[1763468064191,0.00231323,91180.0,91166.0,0.04365423]
[1763468064192,0.01131322,91180.0,91166.0,0.04365423]
[1763468064509,0.04489323,91180.0,91179.0,0.04338]
[1763468065193,0.04489323,91180.0,91179.0,0.02188]
[1763468065393,0.04489323,91180.0,91179.0,0.04338]
[1763468065790,0.02370323,91180.0,91179.0,0.04338]
[1763468066114,0.00231323,91180.0,91179.0,0.04338]
[1763468066490,0.0001152,91180.0,91179.0,0.04338]
[1763468066899,0.0001645,91189.0,91188.0,0.04338]
[1763468074701,0.0001645,91189.0,91188.0,0.05719]
[1763468081608,0.03909988,91215.0,91188.0,0.05719]
[1763468081803,0.04537803,91210.0,91209.0,0.04366]
[1763468081999,0.06968795,91210.0,91209.0,0.04366]
[1763468082606,0.04318,91198.0,91197.0,0.05747]
[1763468082812,0.06748992,91198.0,91197.0,0.05747]
[1763468083113,0.04614992,91198.0,91197.0,0.05747]
[1763468083411,0.06748992,91198.0,91197.0,0.05747]
[1763468087516,0.06748992,91198.0,91197.0,0.04366]
[1763468087919,0.02430992,91198.0,91192.0,0.02135]
[1763468088109,0.04318,91193.0,91192.0,0.02135]
[1763468088305,0.06748992,91193.0,91192.0,0.02135]
[1763468088512,0.04318,91189.0,91188.0,0.0438245]
[1763468088716,0.02403803,91190.0,91189.0,0.04366]
[1763468089020,0.06987769,91190.0,91189.0,0.04366]
[1763468089713,0.04318,91189.0,91188.0,0.0001645]
[1763468090017,0.06767966,91189.0,91188.0,0.0001645]
[1763468090407,0.02184,91169.0,91168.0,0.05747]
[1763468090712,0.06767671,91169.0,91168.0,0.05747]
[1763468091014,0.06767671,91169.0,91166.0,0.00027423]
[1763468091015,0.04318,91167.0,91166.0,0.00027423]
[1763468091210,0.06767671,91167.0,91166.0,0.00027423]
[1763468091719,0.06767671,91167.0,91166.0,0.04393423]
[1763468092112,0.06767671,91167.0,91166.0,0.02162423]
[1763468092615,0.06767671,91167.0,91166.0,0.00027423]
[1763468092812,0.06767671,91167.0,91152.0,0.01381]
[1763468093117,0.04537803,91160.0,91159.0,0.04366]
[1763468093316,0.06987474,91160.0,91159.0,0.04366]
[1763468094212,0.02669474,91160.0,91159.0,0.04366]
[1763468094416,0.00219803,91160.0,91159.0,0.04366]
[1763468094808,0.00899999,91170.0,91169.0,0.04366]
[1763468095118,0.02666469,91170.0,91169.0,0.04366]
[1763468095317,0.00219803,91170.0,91169.0,0.04366]
[1763468096118,0.02403803,91170.0,91169.0,0.04366]
[1763468096317,0.04537803,91170.0,91169.0,0.04366]
[1763468096513,0.0698424,91170.0,91169.0,0.04366]
[1763468097021,0.0698424,91170.0,91161.0,0.05798]
[1763468097022,0.04361,91162.0,91161.0,0.05798]
[1763468097208,0.06807437,91162.0,91161.0,0.05798]
[1763468098619,0.01089191,91153.0,91152.0,0.05859]
[1763468099118,0.04705999,91170.0,91169.0,0.04478]
[1763468099417,0.0647014,91170.0,91169.0,0.04478]
[1763468099617,0.0266414,91170.0,91169.0,0.04478]
[1763468100221,0.0456714,91170.0,91169.0,0.04478]
[1763468100420,0.0647014,91170.0,91169.0,0.04478]
[1763468100617,0.03806,91160.0,91159.0,0.04478]
[1763468100821,0.00219803,91160.0,91159.0,0.04478]
[1763468101022,0.00899999,91170.0,91169.0,0.04478]
[1763468101218,0.03909988,91184.0,91160.0,0.01346]
[1763468101219,0.00899999,91180.0,91175.0,0.04478]
[1763468101417,0.03909988,91194.0,91175.0,0.04478]
[1763468101617,0.07747988,91197.0,91196.0,0.04478]
[1763468101813,0.06284323,91197.0,91196.0,0.04478]
[1763468102025,0.03838,91191.0,91190.0,0.05824]
[1763468102224,0.06284323,91191.0,91190.0,0.05824]
[1763468102922,0.01919,91182.0,91181.0,0.0449445]
[1763468103123,0.28681278,91200.0,91181.0,0.0449445]
[1763468103124,0.0001645,91200.0,91199.0,0.04478]
[1763468103336,0.02682539,91200.0,91199.0,0.04478]
[1763468104131,0.02462736,91200.0,91199.0,0.04478]
[1763468104437,0.00899999,91220.0,91205.0,0.04478]
[1763468105538,0.31674817,91230.0,91229.0,0.04478]
[1763468105539,0.05190999,91230.0,91229.0,0.04478]
[1763468105732,0.04510803,91230.0,91229.0,0.04478]
[1763468107234,0.00219803,91230.0,91229.0,0.04478]
[1763468107538,0.0001645,91239.0,91238.0,0.04478]
[1763468107937,0.04291,91231.0,91230.0,0.05824]
[1763468108126,0.0001645,91239.0,91238.0,0.04478]
[1763468112839,0.03909988,91274.0,91267.0,0.04478]
[1763468113047,0.03909988,91274.0,91260.0,0.01346]
[1763468113048,0.00219803,91270.0,91269.0,0.04478]
[1763468113431,0.00164703,91270.0,91269.0,0.04478]
[1763468116335,0.02278703,91270.0,91269.0,0.04478]
[1763468116535,0.00164703,91270.0,91269.0,0.04478]
[1763468119745,0.02278703,91270.0,91269.0,0.04478]
[1763468120737,0.00164703,91270.0,91269.0,0.04478]
[1763468122345,0.02400703,91270.0,91269.0,0.04478]
[1763468123847,0.04632703,91270.0,91269.0,0.04478]
[1763468124452,0.04632703,91270.0,91260.0,0.0136244]
[1763468124453,0.04468,91261.0,91260.0,0.0596244]
[1763468124647,0.04468,91261.0,91260.0,0.06017539]
[1763468124952,0.04468,91261.0,91260.0,0.04671539]
[1763468126453,0.04468,91261.0,91260.0,0.02402539]
[1763468126658,0.04468,91261.0,91260.0,0.00071539]
[1763468126954,0.04468,91261.0,91260.0,0.0001644]
[1763468127154,0.05316999,91250.0,91249.0,0.04382]
[1763468127346,0.05536802,91250.0,91249.0,0.04382]
[1763468127853,0.04636803,91250.0,91249.0,0.04382]
[1763468128248,0.00219803,91250.0,91249.0,0.04382]
[1763468130856,0.0001644,91259.0,91258.0,0.04382]
[1763468131452,0.0224544,91259.0,91258.0,0.04382]
[1763468131653,0.04659875,91259.0,91258.0,0.04382]
[1763468132457,0.02430875,91259.0,91258.0,0.04382]
[1763468133954,0.04659875,91259.0,91258.0,0.04382]
[1763468135843,0.02430875,91259.0,91258.0,0.04382]
[1763468137958,0.03909988,91270.0,91269.0,0.0566]
[1763468138157,0.03909988,91274.0,91272.0,0.04382]
[1763468138346,0.03909988,91274.0,91273.0,0.04382]
[1763468138753,0.03909988,91275.0,91274.0,0.04382]
[1763468139158,0.06138988,91275.0,91274.0,0.04382]
[1763468139463,0.02229,91275.0,91274.0,0.04382]
[1763468139660,0.05863991,91281.0,91279.0,0.04382]
[1763468139849,0.00219803,91280.0,91279.0,0.04382]
[1763468143462,0.02448803,91280.0,91279.0,0.04382]
[1763468144256,0.00219803,91280.0,91279.0,0.04382]
[1763468147559,0.02448803,91280.0,91279.0,0.04382]
[1763468147760,0.00219803,91280.0,91279.0,0.04382]
[1763468149866,0.0263057,91280.0,91279.0,0.04382]
[1763468151267,0.0704757,91280.0,91279.0,0.02264]
[1763468151667,0.0832557,91280.0,91279.0,0.04382]
[1763468152764,0.02410767,91280.0,91279.0,0.04382]
[1763468152968,0.0001644,91284.0,91283.0,0.04382]
[1763468153357,0.02428579,91284.0,91283.0,0.04382]
[1763468155569,0.00899999,91290.0,91289.0,0.04382]
[1763468155766,0.16531141,91310.0,91302.0,0.04382]
[1763468155767,0.03921647,91303.0,91302.0,0.04382]
[1763468155968,0.04417,91303.0,91302.0,0.04382]
[1763468158870,0.04548,91310.0,91309.0,0.04396]
[1763468159064,0.04767803,91310.0,91309.0,0.04396]
[1763468165062,0.00219803,91310.0,91309.0,0.04396]
[1763468165673,0.02462803,91310.0,91309.0,0.04396]
[1763468166167,0.00219803,91310.0,91309.0,0.04396]
[1763468166366,0.00016431,91312.0,91311.0,0.04396]
[1763468167366,0.00027375,91326.0,91325.0,0.04396]
[1763468167571,0.00027375,91326.0,91320.0,0.04451099]
[1763468167572,0.04548,91321.0,91320.0,0.04451099]
[1763468167766,0.06950154,91321.0,91320.0,0.04451099]
[1763468168573,0.06950154,91321.0,91320.0,0.00055099]
[1763468168778,0.04548,91312.0,91311.0,0.00016431]
[1763468168973,0.06950154,91312.0,91311.0,0.04412431]